fUSD/lending_fUSD_20260208
["ID","MTS","AMOUNT","RATE_DAILY","PERIOD"]
[404783233,1770547832039,-103.59669946,0.00026289,2]
[404783234,1770547832134,-56.40330054,0.00026289,2]
[404783235,1770547832147,-177.14053182,0.00026384,2]
[404783236,1770547832156,-1096.13,0.00026407,2]
[404783237,1770547832165,-208.9,0.00026415,2]
[404783238,1770547832174,-4821.38,0.00026441,2]
[404783239,1770547832184,-150.0,0.00026443,2]
[404783241,1770547832193,-200.0,0.00026443,2]
[404783242,1770547832202,-500.0,0.00026461,2]
[404783243,1770547832211,-141.35848448,0.00026463,2]
[404783245,1770547838015,-67.54151552,0.00026463,2]
[404783246,1770547838025,-300.0,0.00026473,2]
[404783247,1770547838035,-3038.59,0.00026474,2]
[404783248,1770547838044,-150.0,0.00026502,2]
[404783249,1770547838053,-208.9,0.00026512,2]
[404783250,1770547838062,-208.9,0.00026561,2]
[404783251,1770547838072,-277.35679052,0.00026576,2]
[404783252,1770547838081,-179.46,0.0002658,2]
[404783253,1770547838091,-7162.1097,0.00026592,2]
[404783254,1770547838100,-500.0,0.00026603,2]
[404783255,1770547838109,-208.9,0.00026609,2]
[404783256,1770547838118,-160.0,0.00026622,2]
[404783257,1770547838128,-600.0,0.00026629,2]
[404783258,1770547838137,-219.23,0.00026629,2]
[404783259,1770547838149,-172.09715717,0.00026651,2]
[404783260,1770547838159,-208.9,0.00026658,2]
[404783261,1770547838168,-208.9,0.00026706,2]
[404783262,1770547838178,-208.9,0.00026755,2]
[404783263,1770547838187,-208.9,0.00026804,2]
[404783264,1770547838196,-208.9,0.00026852,2]
[404783265,1770547838205,-208.9,0.00026901,2]
[404783266,1770547838215,-208.9,0.0002695,2]
[404783267,1770547838226,-164.6268,0.00026959,2]
[404783269,1770547838235,-165.8537,0.00026959,2]
[404783271,1770547838244,-208.9,0.00026998,2]
[404783273,1770547838253,-208.9,0.00027047,2]
[404783275,1770547838262,-151.0,0.00027056,7]
[404783277,1770547838271,-151.0,0.00027056,7]
[404783278,1770547838281,-151.0,0.00027056,7]
[404783280,1770547838290,-54180.83433679,0.00027059,2]
[404783284,1770547838312,-10241.7408808,0.00027059,2]
[404783286,1770547838326,-486.00000005,0.00027059,2]
[404783288,1770547838337,-534.75214069,0.00027059,2]
[404783291,1770547838348,-330.78,0.00027059,2]
[404783295,1770547840109,-3432.86298923,0.00027059,2]
[404783296,1770547840317,-1054.225,0.00027059,2]
[404783297,1770547840370,-1199.65220084,0.00027059,2]
[404783298,1770547840379,-342.396302,0.00027059,2]
[404783299,1770547840388,-342.396302,0.00027059,2]
[404783300,1770547840397,-342.396302,0.00027059,2]
[404783301,1770547840406,-342.396302,0.00027059,2]
[404783302,1770547840416,-1350.6161448,0.00027059,2]
[404783303,1770547840427,-5750.8477689,0.00027059,2]
[404783304,1770547840435,-151.0,0.00027059,2]
[404783305,1770547840444,-208.9,0.00027096,2]
[404783306,1770547840453,-248.02173749,0.00027124,2]
[404783307,1770547840462,-208.9,0.00027144,2]
[404783308,1770547840471,-208.9,0.00027193,2]
[404783309,1770547840480,-500.0,0.00027242,2]
[404783310,1770547840489,-208.9,0.00027242,2]
[404783311,1770547840498,-208.9,0.0002729,2]
[404783312,1770547840507,-208.9,0.00027339,2]
[404783313,1770547840516,-958.46280088,0.00027397,20]
[404783370,1770547846224,-41.53719912,0.00027397,20]
[404783371,1770547846234,-300.0,0.00027397,2]
[404783372,1770547846243,-416.0,0.000275,2]
[404783373,1770547846252,-500.0,0.00027516,2]
[404783374,1770547846262,-496.79912984,0.00027583,2]
[404783390,1770547897781,199.004,0.000355,42]
[404783396,1770547927788,166.66,0.00025625,30]
[404783397,1770547927985,166.66,0.00026164,30]
[404783398,1770547928182,166.66,0.00026704,30]
[404783399,1770547928382,166.66,0.00027243,30]
[404783400,1770547928582,166.66,0.00027782,30]
[404783401,1770547928806,166.66,0.00028322,30]
[404783402,1770547933576,151.0,0.00035616,30]
[404783403,1770547934266,156.587,0.00035616,30]
[404783404,1770547934942,162.380719,0.00035616,30]
[404783405,1770547935610,168.3888056,0.00035616,30]
[404783406,1770547936456,174.61919141,0.00035616,30]
[404783407,1770547936893,181.08010149,0.00035616,30]
[404783408,1770547937587,187.78006525,0.00035616,30]
[404783409,1770547938253,194.72792766,0.00035616,30]
[404783410,1770547938865,201.93286099,0.00035616,30]
[404783411,1770547939648,209.40437684,0.00035616,30]
[404783412,1770547940112,217.15233878,0.00035616,30]
[404783413,1770547940754,225.18697532,0.00035616,30]
[404783414,1770547941405,233.51889341,0.00035616,30]
[404783415,1770547942035,242.15909246,0.00035616,30]
[404783416,1770547942671,251.11897888,0.00035616,30]
[404783417,1770547943321,260.4103811,0.00035616,30]
[404783418,1770547943963,270.0455652,0.00035616,30]
[404783419,1770547944598,280.03725112,0.00035616,30]
[404783420,1770547945213,290.39862941,0.00035616,30]
[404783421,1770547945826,301.1433787,0.00035616,30]
[404783422,1770547988657,500.0,0.00035342,30]
[404783423,1770547988815,500.0,0.00035397,30]
[404783424,1770547988976,500.0,0.00035452,30]
[404783425,1770547989132,500.0,0.00035506,30]
[404783426,1770547989288,500.0,0.00035561,30]
[404783427,1770547989439,500.0,0.00035616,30]
[404783432,1770548169128,157.58608348,0.00035562,120]
[404783433,1770548187042,500.0,0.00035342,30]
[404783434,1770548187197,500.0,0.00035397,30]
[404783435,1770548187393,500.0,0.00035452,30]
[404783436,1770548187578,350.0,0.00035506,30]
[404783437,1770548233807,151.0,0.00035616,30]
[404783438,1770548234424,156.587,0.00035616,30]
[404783439,1770548235179,162.380719,0.00035616,30]
[404783440,1770548235836,168.3888056,0.00035616,30]
[404783441,1770548236463,174.61919141,0.00035616,30]
[404783442,1770548237286,181.08010149,0.00035616,30]
[404783443,1770548238466,187.78006525,0.00035616,30]
[404783444,1770548239383,194.72792766,0.00035616,30]
[404783445,1770548239730,201.93286099,0.00035616,30]
[404783446,1770548240373,209.40437684,0.00035616,30]
[404783447,1770548243220,217.15233878,0.00035616,30]
[404783448,1770548245913,225.18697532,0.00035616,30]
[404783449,1770548246542,233.51889341,0.00035616,30]
[404783450,1770548247195,242.15909246,0.00035616,30]
[404783451,1770548247952,251.11897888,0.00035616,30]
[404783452,1770548248599,260.4103811,0.00035616,30]
[404783453,1770548249217,270.0455652,0.00035616,30]
[404783454,1770548249879,280.03725112,0.00035616,30]
[404783455,1770548250565,290.39862941,0.00035616,30]
[404783456,1770548251215,301.1433787,0.00035616,30]
[404783457,1770548345026,222.95,0.00027795,120]
[404783458,1770548378037,150.0,0.00035342,30]
[404783459,1770548386416,508.42955982,0.0003461,30]
[404783460,1770548497864,159.203,0.00035452,42]
[404783461,1770548540644,151.0,0.00035616,30]
[404783462,1770548541401,156.587,0.00035616,30]
[404783463,1770548542013,162.380719,0.00035616,30]
[404783464,1770548542615,168.3888056,0.00035616,30]
[404783465,1770548543268,174.61919141,0.00035616,30]
[404783466,1770548543898,181.08010149,0.00035616,30]
[404783467,1770548544523,187.78006525,0.00035616,30]
[404783468,1770548545145,194.72792766,0.00035616,30]
[404783469,1770548545775,201.93286099,0.00035616,30]
[404783470,1770548546406,209.40437684,0.00035616,30]
[404783471,1770548547038,217.15233878,0.00035616,30]
[404783472,1770548547709,225.18697532,0.00035616,30]
[404783473,1770548548340,233.51889341,0.00035616,30]
[404783474,1770548549081,242.15909246,0.00035616,30]
[404783475,1770548549558,251.11897888,0.00035616,30]
[404783476,1770548550171,260.4103811,0.00035616,30]
[404783477,1770548550822,270.0455652,0.00035616,30]
[404783478,1770548551513,280.03725112,0.00035616,30]
[404783479,1770548552160,290.39862941,0.00035616,30]
[404783480,1770548552773,301.1433787,0.00035616,30]
[404783481,1770548624164,163.67245157,1.5e-07,2]
[404783482,1770548624490,163.67245157,2e-07,2]
[404783483,1770548624826,163.67245157,2.6e-07,2]
[404783484,1770548625128,163.67245157,3.1e-07,2]
[404783485,1770548625417,163.67245157,3.7e-07,2]
[404783501,1770549032228,-662.96,0.00026111,2]
[404783502,1770549032282,-337.04,0.00026111,2]
[404783503,1770549032292,-800.0,0.000265,9]
[404783504,1770549032301,-718.96125187,0.000266,9]
[404783505,1770549032337,-335.3671,0.000266,9]
[404783507,1770549038375,-545.67164813,0.000266,9]
[404783508,1770549038385,-300.0,0.00026626,2]
[404783509,1770549038394,-200.0,0.00026627,2]
[404783510,1770549038403,-1535.05314332,0.00026627,2]
[404783511,1770549038601,-330.225,0.00026627,2]
[404783512,1770549038612,-3134.72185668,0.00026627,2]
[404783513,1770549038623,-2500.0,0.000267,9]
[404783514,1770549038632,-322.54531028,0.000268,2]
[404783515,1770549038642,-678.14534527,0.000268,2]
[404783516,1770549038651,-2829.6013806,0.000268,9]
[404783517,1770549038662,-426.61846658,0.000268,9]
[404783530,1770549040362,-43.78015282,0.000268,9]
[404783531,1770549040371,-207.23557636,0.00026816,2]
[404783532,1770549040381,-207.0,0.00026825,2]
[404783533,1770549040390,-761.77717659,0.00026825,2]
[404783535,1770549040401,-369.0,0.00026825,2]
[404783537,1770549040415,-1674.02184894,0.00026825,2]
[404783539,1770549040425,-195.20097447,0.00026825,2]
[404783540,1770549040435,-466.15902553,0.00026825,7]
[404783543,1770549040445,-488.52303721,0.00026825,7]
[404783545,1770549040454,-77.54626296,0.00026826,2]
[404783556,1770549040574,-22276.73343927,0.00026826,2]
[404783558,1770549040583,-151.0,0.00026826,2]
[404783560,1770549040594,-151.0,0.00026826,2]
[404783562,1770549040608,-1025.929478,0.00026826,2]
[404783564,1770549040617,-1025.929478,0.00026826,2]
[404783566,1770549040627,-151.0,0.00026826,2]
[404783568,1770549040636,-1025.929478,0.00026826,2]
[404783570,1770549040645,-151.0,0.00026826,2]
[404783571,1770549040654,-1025.929478,0.00026826,2]
[404783573,1770549040663,-151.0,0.00026826,2]
[404783575,1770549040673,-151.0,0.00026826,2]
[404783577,1770549040682,-151.0,0.00026826,2]
[404783579,1770549040691,-118574.97474428,0.00026826,2]
[404783581,1770549040702,-477.14203389,0.00026826,2]
[404783583,1770549040714,-2689864.30621845,0.00026826,2]
[404783586,1770549040725,-2512.3783548,0.00026826,2]
[404783599,1770549045488,-706.02368596,0.000268,2]
[404783600,1770549045498,-6012.68909376,0.00026826,2]
[404783602,1770549046222,-263591.55576757,0.00026826,2]
[404783603,1770549046329,-538.9811538,0.00026826,2]
[404783604,1770549046341,-7557.25460753,0.00026826,2]
[404783605,1770549046351,-1530.7709169,0.00026826,2]
[404783606,1770549046382,-759.70403484,0.00026826,2]
[404783607,1770549046393,-826.049999,0.00026826,2]
[404783608,1770549046488,-444.98876038,0.00026826,2]
[404783609,1770549046499,-799.4621888,0.00026826,2]
[404783637,1770549097810,159.203,0.00035452,42]
[404783641,1770549147690,151.0,0.00035616,30]
[404783642,1770549148304,156.587,0.00035616,30]
[404783643,1770549148915,162.380719,0.00035616,30]
[404783644,1770549149524,168.3888056,0.00035616,30]
[404783645,1770549149600,151.0,0.000339,31]
[404783646,1770549150137,174.61919141,0.00035616,30]
[404783647,1770549150801,181.08010149,0.00035616,30]
[404783648,1770549151458,187.78006525,0.00035616,30]
[404783649,1770549152088,194.72792766,0.00035616,30]
[404783650,1770549152690,201.93286099,0.00035616,30]
[404783651,1770549153322,209.40437684,0.00035616,30]
[404783652,1770549153934,217.15233878,0.00035616,30]
[404783653,1770549154744,225.18697532,0.00035616,30]
[404783654,1770549155168,233.51889341,0.00035616,30]
[404783655,1770549155771,242.15909246,0.00035616,30]
[404783656,1770549156373,251.11897888,0.00035616,30]
[404783657,1770549156990,260.4103811,0.00035616,30]
[404783658,1770549157615,270.0455652,0.00035616,30]
[404783659,1770549158232,280.03725112,0.00035616,30]
[404783660,1770549158871,290.39862941,0.00035616,30]
[404783661,1770549159517,301.1433787,0.00035616,30]
[404783662,1770549278824,161.129616,0.000349,31]
[404783673,1770549365096,179.78,0.00030137,30]
[404783674,1770549365421,179.78,0.00034972,30]
[404783681,1770549450399,151.0,0.00033839,31]
[404783682,1770549451962,151.0,0.00035616,30]
[404783683,1770549452580,156.587,0.00035616,30]
[404783684,1770549453280,162.380719,0.00035616,30]
[404783685,1770549454049,168.3888056,0.00035616,30]
[404783686,1770549454671,174.61919141,0.00035616,30]
[404783687,1770549455315,181.08010149,0.00035616,30]
[404783688,1770549455973,187.78006525,0.00035616,30]
[404783689,1770549456600,194.72792766,0.00035616,30]
[404783690,1770549457284,201.93286099,0.00035616,30]
[404783691,1770549457902,209.40437684,0.00035616,30]
[404783692,1770549458526,217.15233878,0.00035616,30]
[404783693,1770549459171,225.18697532,0.00035616,30]
[404783694,1770549492557,233.51889341,0.00035616,30]
[404783695,1770549493219,242.15909246,0.00035616,30]
[404783696,1770549493943,251.11897888,0.00035616,30]
[404783697,1770549494562,260.4103811,0.00035616,30]
[404783698,1770549495188,270.0455652,0.00035616,30]
[404783699,1770549495801,280.03725112,0.00035616,30]
[404783700,1770549496430,290.39862941,0.00035616,30]
[404783701,1770549497075,301.1433787,0.00035616,30]
[404783710,1770549611584,151.0,0.0003526,31]
[404783711,1770549613049,151.0,0.0003526,31]
[404783719,1770549640215,163.67245156,1.21e-06,5]
[404783724,1770549742687,151.0,0.00035616,30]
[404783725,1770549743303,156.587,0.00035616,30]
[404783726,1770549743912,162.380719,0.00035616,30]
[404783727,1770549744516,168.3888056,0.00035616,30]
[404783728,1770549745151,174.61919141,0.00035616,30]
[404783729,1770549745832,181.08010149,0.00035616,30]
[404783730,1770549745895,151.0,0.0003526,31]
[404783731,1770549746464,187.78006525,0.00035616,30]
[404783732,1770549747075,194.72792766,0.00035616,30]
[404783733,1770549747738,201.93286099,0.00035616,30]
[404783734,1770549748370,151.0,0.0003526,31]
[404783735,1770549748421,209.40437684,0.00035616,30]
[404783736,1770549749042,217.15233878,0.00035616,30]
[404783737,1770549749661,225.18697532,0.00035616,30]
[404783738,1770549750298,233.51889341,0.00035616,30]
[404783739,1770549750978,242.15909246,0.00035616,30]
[404783740,1770549751656,251.11897888,0.00035616,30]
[404783741,1770549752552,260.4103811,0.00035616,30]
[404783742,1770549752992,270.0455652,0.00035616,30]
[404783743,1770549753318,151.0,0.0003526,31]
[404783744,1770549753603,280.03725112,0.00035616,30]
[404783745,1770549754461,290.39862941,0.00035616,30]
[404783746,1770549755177,301.1433787,0.00035616,30]
[404783754,1770549804227,259.98419,0.0003526,31]
[404783755,1770549813735,151.0,0.0003526,31]
[404783756,1770549878242,151.0,0.0003526,31]
[404783801,1770550035934,151.0,0.00035616,30]
[404783802,1770550036566,156.587,0.00035616,30]
[404783803,1770550037216,162.380719,0.00035616,30]
[404783804,1770550037845,168.3888056,0.00035616,30]
[404783805,1770550038481,174.61919141,0.00035616,30]
[404783806,1770550039203,181.08010149,0.00035616,30]
[404783807,1770550039832,187.78006525,0.00035616,30]
[404783808,1770550040484,194.72792766,0.00035616,30]
[404783809,1770550041636,201.93286099,0.00035616,30]
[404783810,1770550042281,209.40437684,0.00035616,30]
[404783811,1770550042948,217.15233878,0.00035616,30]
[404783812,1770550043642,225.18697532,0.00035616,30]
[404783813,1770550044284,233.51889341,0.00035616,30]
[404783814,1770550044896,242.15909246,0.00035616,30]
[404783815,1770550045534,251.11897888,0.00035616,30]
[404783816,1770550046302,260.4103811,0.00035616,30]
[404783817,1770550046917,270.0455652,0.00035616,30]
[404783818,1770550048110,280.03725112,0.00035616,30]
[404783819,1770550048782,290.39862941,0.00035616,30]
[404783820,1770550049542,301.1433787,0.00035616,30]
[404783822,1770550058620,151.0,0.0003526,31]
[404783854,1770550190732,15000.0,0.0002,2]
[404783856,1770550212557,151.0,0.0003526,31]
[404783857,1770550213997,151.0,0.0003526,31]
[404783882,1770550231559,-2833.21,0.00023563,2]
[404783883,1770550231569,-194.0,0.00025616,2]
[404783884,1770550231578,-1026.0,0.00025903,2]
[404783885,1770550231587,-200.0,0.00025966,2]
[404783886,1770550231597,-1027.0,0.00026074,2]
[404783887,1770550231606,-1000.0,0.00026171,2]
[404783888,1770550231617,-423.0,0.0002624,2]
[404783889,1770550231627,-504.71855,0.00026241,2]
[404783890,1770550231639,-95.28145,0.00026241,2]
[404783891,1770550231648,-192.63,0.00026241,2]
[404783892,1770550231657,-162.93,0.00026303,2]
[404783893,1770550231667,-162.06,0.00026346,2]
[404783894,1770550231676,-300.0,0.00026523,2]
[404783895,1770550231685,-300.0,0.00026523,2]
[404783896,1770550231694,-159.203,0.00026525,13]
[404783897,1770550231703,-215.03020686,0.00026526,2]
[404783898,1770550231712,-3287.81534314,0.0002654,2]
[404783900,1770550237476,-722.14799494,0.0002654,2]
[404783901,1770550237531,-1260.78888652,0.0002654,2]
[404783902,1770550237542,-895.5214939,0.0002654,2]
[404783903,1770550237553,-1199.44426882,0.0002654,2]
[404783904,1770550237587,-11774.502,0.0002654,2]
[404783905,1770550237598,-70966.00000001,0.0002654,2]
[404783906,1770550237609,-11979.75265951,0.0002654,2]
[404783907,1770550237643,-8460.0,0.0002654,2]
[404783908,1770550237653,-73037.34113683,0.0002654,2]
[404783909,1770550237749,-1364.2629872,0.0002654,2]
[404783911,1770550239541,-1135.96567531,0.0002654,2]
[404783912,1770550239552,-381.8366113,0.0002654,2]
[404783913,1770550239597,-11904.38443923,0.0002654,2]
[404783914,1770550239608,-637.19879022,0.0002654,2]
[404783915,1770550239799,-63308.44550502,0.0002654,2]
[404783916,1770550239826,-174333.5032674,0.0002654,2]
[404783917,1770550239838,-20839.59088421,0.0002654,2]
[404783918,1770550239850,-1581.91527348,0.0002654,2]
[404783919,1770550239860,-652.47824196,0.0002654,2]
[404783920,1770550239888,-1204.37768193,0.0002654,2]
[404783929,1770550244339,-1832.67330149,0.0002654,2]
[404783930,1770550244351,-384.996,0.0002654,2]
[404783931,1770550244362,-341.04,0.0002654,2]
[404783932,1770550244373,-500.0,0.0002654,2]
[404783933,1770550244392,-283160.00000033,0.0002654,2]
[404783934,1770550244403,-453.0,0.0002654,2]
[404783935,1770550244414,-500.0,0.0002654,2]
[404783936,1770550245561,-379983.1539236,0.0002654,2]
[404783937,1770550245573,-265.60627094,0.0002654,2]
[404783938,1770550245619,-602.0,0.0002654,2]
[404783939,1770550245630,-793.1136,0.0002654,2]
[404783940,1770550245674,-581.45672485,0.0002654,2]
[404783941,1770550245685,-3533.65280077,0.0002654,2]
[404783942,1770550245695,-861.19274875,0.0002654,2]
[404783943,1770550245706,-974.0209,0.0002654,2]
[404783944,1770550245717,-482.99504762,0.0002654,2]
[404783945,1770550245728,-278.76353862,0.0002654,2]
[404783946,1770550245742,-2783.37,0.0002654,2]
[404783947,1770550245754,-6130.55438447,0.0002654,2]
[404783948,1770550245765,-1876.8110829,0.0002654,2]
[404783949,1770550245775,-533.9999989,0.0002654,2]
[404783950,1770550245786,-1741.51738562,0.0002654,2]
[404784040,1770550333697,151.0,0.00035616,30]
[404784041,1770550334322,156.587,0.00035616,30]
[404784042,1770550334958,162.380719,0.00035616,30]
[404784043,1770550335712,168.3888056,0.00035616,30]
[404784044,1770550336351,174.61919141,0.00035616,30]
[404784045,1770550337017,181.08010149,0.00035616,30]
[404784046,1770550337652,187.78006525,0.00035616,30]
[404784047,1770550338278,194.72792766,0.00035616,30]
[404784048,1770550338930,201.93286099,0.00035616,30]
[404784049,1770550339582,209.40437684,0.00035616,30]
[404784050,1770550340223,217.15233878,0.00035616,30]
[404784051,1770550340920,225.18697532,0.00035616,30]
[404784052,1770550341567,233.51889341,0.00035616,30]
[404784053,1770550342587,242.15909246,0.00035616,30]
[404784054,1770550343268,251.11897888,0.00035616,30]
[404784055,1770550343953,260.4103811,0.00035616,30]
[404784056,1770550344596,270.0455652,0.00035616,30]
[404784057,1770550345206,280.03725112,0.00035616,30]
[404784058,1770550345853,290.39862941,0.00035616,30]
[404784059,1770550346474,301.1433787,0.00035616,30]
[404784060,1770550348984,151.0,0.0003526,31]
[404784063,1770550391313,3000.0,0.00023,2]
[404784064,1770550395262,166.66,0.00024677,30]
[404784065,1770550395446,166.66,0.00025197,30]
[404784066,1770550395643,166.66,0.00025716,30]
[404784067,1770550395835,166.66,0.00026236,30]
[404784068,1770550396034,166.66,0.00026755,30]
[404784069,1770550396218,166.66,0.00027275,30]
[404784071,1770550459406,-150.0,0.00025912,2]
[404784072,1770550459429,-159.203,0.00026009,12]
[404784073,1770550459450,-299.82,0.000264,2]
[404784074,1770550459473,-6918.861,0.0002644,2]
[404784080,1770550630092,151.0,0.00035616,30]
[404784081,1770550630707,156.587,0.00035616,30]
[404784082,1770550631912,162.380719,0.00035616,30]
[404784083,1770550632592,168.3888056,0.00035616,30]
[404784084,1770550633253,174.61919141,0.00035616,30]
[404784085,1770550634123,181.08010149,0.00035616,30]
[404784086,1770550634593,187.78006525,0.00035616,30]
[404784087,1770550635434,194.72792766,0.00035616,30]
[404784088,1770550636077,201.93286099,0.00035616,30]
[404784089,1770550636789,209.40437684,0.00035616,30]
[404784090,1770550637440,217.15233878,0.00035616,30]
[404784091,1770550638069,225.18697532,0.00035616,30]
[404784092,1770550638727,233.51889341,0.00035616,30]
[404784093,1770550639364,242.15909246,0.00035616,30]
[404784094,1770550639992,251.11897888,0.00035616,30]
[404784095,1770550640820,260.4103811,0.00035616,30]
[404784096,1770550641483,270.0455652,0.00035616,30]
[404784097,1770550642182,280.03725112,0.00035616,30]
[404784098,1770550642829,290.39862941,0.00035616,30]
[404784099,1770550643974,301.1433787,0.00035616,30]
[404784100,1770550651030,151.0,0.0003526,31]
[404784103,1770550811103,151.0,0.00035615,31]
[404784104,1770550812684,151.0,0.00035615,31]
[404784105,1770550869521,222.95,0.00026062,120]
[404784108,1770550897870,159.20497011,0.000355,42]
[404784113,1770550924490,150.0,0.00023,2]
[404784114,1770550932991,151.0,0.00035616,30]
[404784115,1770550933799,156.587,0.00035616,30]
[404784116,1770550934283,162.380719,0.00035616,30]
[404784117,1770550941446,168.3888056,0.00035616,30]
[404784118,1770550943959,174.61919141,0.00035616,30]
[404784119,1770550944626,181.08010149,0.00035616,30]
[404784120,1770550945310,187.78006525,0.00035616,30]
[404784121,1770550945967,194.72792766,0.00035616,30]
[404784122,1770550946634,201.93286099,0.00035616,30]
[404784123,1770550947262,209.40437684,0.00035616,30]
[404784124,1770550947778,151.0,0.0003526,31]
[404784125,1770550947904,217.15233878,0.00035616,30]
[404784126,1770550948610,225.18697532,0.00035616,30]
[404784127,1770550949466,233.51889341,0.00035616,30]
[404784128,1770550950088,242.15909246,0.00035616,30]
[404784129,1770550950748,251.11897888,0.00035616,30]
[404784130,1770550951612,260.4103811,0.00035616,30]
[404784131,1770550952003,270.0455652,0.00035616,30]
[404784132,1770550952639,280.03725112,0.00035616,30]
[404784133,1770550953386,290.39862941,0.00035616,30]
[404784134,1770550954119,301.1433787,0.00035616,30]
[404784135,1770550993054,100000.0,0.00035616,30]
[404784138,1770551127241,153.913206,0.000329,31]
[404784139,1770551130376,151.0,0.000329,31]
[404784140,1770551187554,151.0,0.00034436,31]
[404784159,1770551229836,151.0,0.00035616,30]
[404784180,1770551230522,156.587,0.00035616,30]
[404784200,1770551231191,162.380719,0.00035616,30]
[404784201,1770551231892,168.3888056,0.00035616,30]
[404784202,1770551232539,174.61919141,0.00035616,30]
[404784203,1770551233323,181.08010149,0.00035616,30]
[404784204,1770551233878,187.78006525,0.00035616,30]
[404784205,1770551234560,194.72792766,0.00035616,30]
[404784206,1770551235288,201.93286099,0.00035616,30]
[404784207,1770551235963,209.40437684,0.00035616,30]
[404784208,1770551236598,217.15233878,0.00035616,30]
[404784209,1770551237305,225.18697532,0.00035616,30]
[404784210,1770551237925,233.51889341,0.00035616,30]
[404784211,1770551238559,242.15909246,0.00035616,30]
[404784212,1770551239250,251.11897888,0.00035616,30]
[404784213,1770551239877,260.4103811,0.00035616,30]
[404784214,1770551240555,270.0455652,0.00035616,30]
[404784215,1770551241249,280.03725112,0.00035616,30]
[404784216,1770551241908,290.39862941,0.00035616,30]
[404784217,1770551242577,301.1433787,0.00035616,30]
[404784218,1770551248687,151.0,0.00035615,31]
[404784237,1770551409747,151.0,0.00035463,31]
[404784249,1770551431878,-291.65158265,0.00024658,2]
[404784277,1770551437769,-74.16841735,0.00024658,2]
[404784278,1770551437778,-250.0,0.00025144,2]
[404784279,1770551437788,-198.86233553,0.00025629,2]
[404784280,1770551437800,-678.03766447,0.00025629,2]
[404784281,1770551437809,-5000.0,0.00025642,2]
[404784282,1770551437819,-200.0,0.00025656,2]
[404784283,1770551437829,-281.36,0.000258,13]
[404784284,1770551437842,-674.12,0.00026,2]
[404784285,1770551437851,-500.0,0.00026093,2]
[404784286,1770551437861,-278.21,0.00026093,2]
[404784287,1770551437871,-278.21,0.00026141,2]
[404784288,1770551437880,-278.21,0.00026189,2]
[404784289,1770551437890,-278.21,0.00026238,2]
[404784290,1770551437900,-278.21,0.00026286,2]
[404784291,1770551437909,-278.21,0.00026334,2]
[404784292,1770551437918,-9999.99,0.00026334,2]
[404784293,1770551437928,-278.21,0.00026382,2]
[404784294,1770551437937,-278.21,0.0002643,2]
[404784295,1770551437947,-278.21,0.00026478,2]
[404784296,1770551437956,-278.21,0.00026526,2]
[404784297,1770551437966,-1938.1118497,0.00026539,2]
[404784298,1770551437975,-16981.9340771,0.0002654,2]
[404784299,1770551437984,-278.21,0.00026574,2]
[404784300,1770551437994,-278.21,0.00026622,2]
[404784301,1770551438003,-1026.0,0.0002664,7]
[404784302,1770551438012,-150.0,0.00026669,2]
[404784303,1770551438022,-278.21,0.0002667,2]
[404784304,1770551438033,-1026.0,0.00026693,2]
[404784305,1770551438042,-278.21,0.00026718,2]